Cogmind - Beta 12 @@@ ROGUE MODE // 2023.05.10 @ 22:50:13 Player: Mr Goldstein Result: Self-destructed Performance ------------- Evolutions (3) 1500 Regions Visited (6) 1200 Robots Destroyed (0) 0 Value Destroyed (0) 0 Prototype IDs (0) 0 Alien Tech Used (0) 0 Bonus (834) 834 TOTAL SCORE: 3534 Bonus ------- Pacifist 834 Cogmind --------- Core Integrity 150/700 Matter 295/300 Energy 63/100 System Corruption 2% Temperature Cool (0) Movement Core (50) Location -7/Lower Caves Parts ------- > --- POWER (2) -------- (None) > --- PROPULSION (2) --- (None) > --- UTILITY (7) ------ Improved Sensor Array Improved Reaction Control System > --- WEAPON (2) ------- (None) > --- INVENTORY (5) ---- Improved Propulsion Shielding Improved Propulsion Shielding Improved Propulsion Shielding Improved Medium Armor Plating Powered Hammer Peak State ------------ > --- POWER ------------ (None) > --- PROPULSION ------- VTOL Module Xenon Bombardment Thruster > --- UTILITY ---------- Improved Sensor Array Improved Propulsion Shielding Improved Propulsion Shielding Improved Propulsion Shielding > --- WEAPON ----------- (None) > --- INVENTORY -------- Improved Propulsion Shielding Improved Propulsion Shielding Improved Propulsion Shielding Improved Medium Armor Plating [Rating: 19] Favorites ----------- Power None Propulsion Light Treads Treads Light Treads Flight Unit Xenon Bombardment Thruster Utility Improved Propulsion Shielding Device Improved Sensor Array Protection Improved Propulsion Shielding Weapon None Build | -11 -10 -9 -8 -7 -7 -7 ------- Run | Jun Mat Mat Mat Fac Low Low Slots Evolved 6 | . . 2 2 2 . . Power 1 | . . . 1 . . . Propulsion . | . . . . . . . Utility 5 | . . 2 1 2 . . Weapon . | . . . . . . . Parts Attached 11 | 2 . . 1 4 3 1 Power . | . . . . . . . Engine . | . . . . . . . Core . | . . . . . . . Reactor . | . . . . . . . Propulsion 5 | 2 . . . 2 1 . Treads 3 | 2 . . . . 1 . Leg . | . . . . . . . Wheel . | . . . . . . . Hover . | . . . . . . . Flight 2 | . . . . 2 . . Utility 6 | . . . 1 2 2 1 Device 3 | . . . . . 2 1 Storage . | . . . . . . . Processor . | . . . . . . . Hackware . | . . . . . . . Protection 3 | . . . 1 2 . . Artifact . | . . . . . . . Weapon . | . . . . . . . Energy Gun . | . . . . . . . Energy Cannon . | . . . . . . . Ballistic Gun . | . . . . . . . Ballistic Cannon . | . . . . . . . Launcher . | . . . . . . . Special Weapon . | . . . . . . . Impact Weapon . | . . . . . . . Slashing Weapon . | . . . . . . . Piercing Weapon . | . . . . . . . Special Melee Weapon . | . . . . . . . Unidentified Prototypes . | . . . . . . . Parts Lost 5 | . . 2 . . 2 1 Power . | . . . . . . . Propulsion 5 | . . 2 . . 2 1 Utility . | . . . . . . . Weapon . | . . . . . . . Highest Loss Streak 2 | . . 2 . . 2 1 To Critical Strikes . | . . . . . . . Average Slot Usage (%) 22 | . 28 17 7 24 22 23 Treads 5 | . 28 17 . . 1 7 Flight 4 | . . . . 7 4 . Device 1 | . . . . . 3 8 Protection 10 | . . . 7 16 13 6 Naked Turns 10 | . . 4 6 . . . Heaviest Build 7 | . . . 2 6 7 3 Greatest Support 20 | 20 3 3 3 10 10 3 Greatest Overweight (x) 1 | . . . . . 1 . Average Overweight (x) . | . . . . . . . Largest Inventory Capacity 5 | 5 5 5 5 5 5 5 Average Capacity 5 | 5 5 5 5 5 5 5 Most Carried 5 | . . . 5 5 5 5 Average Carried 3 | . . . 4 4 4 5 Final Capacity 5 | 5 5 5 5 5 5 5 Final Carried 5 | . . . 5 4 5 5 Class Distribution -------------------- 100% | Mutant Dominant Class ---------------- Mutant | -10/Materials Mutant | -9/Materials Mutant | -8/Materials Mutant | -7/Factory Mutant | -7/Lower Caves Mutant | -7/Lower Caves Resources | -11 -10 -9 -8 -7 -7 -7 ----------- Run | Jun Mat Mat Mat Fac Low Low Matter Collected 290 | 173 47 . . 16 44 10 Remotely . | . . . . . . . Salvage Created . | . . . . . . . Parts . | . . . . . . . Haulers Intercepted . | . . . . . . . Recyclers Shooed . | . . . . . . . Parts Field Recycled . | . . . . . . . Retrieved Matter . | . . . . . . . Parts Self-Destructed . | . . . . . . . Prevented . | . . . . . . . Kills | -11 -10 -9 -8 -7 -7 -7 ------- Run | Jun Mat Mat Mat Fac Low Low Combat Hostiles Destroyed . | . . . . . . . Classes Destroyed . | . . . . . . . Best Kill Streak . | . . . . . . . Combat Bots Only . | . . . . . . . Max Kills in Single Turn . | . . . . . . . Gunslinging . | . . . . . . . Exploded . | . . . . . . . Melee . | . . . . . . . Uniques/NPCs Destroyed . | . . . . . . . Combat | -11 -10 -9 -8 -7 -7 -7 -------- Run | Jun Mat Mat Mat Fac Low Low Damage Taken 1438 | . 196 225 199 430 165 223 Core 873 | . 63 64 196 323 88 139 Absorbed by Shields . | . . . . . . . Redirected to Shielding 148 | . . . . 66 49 33 Core Remaining (%) 80 | 100 74 84 64 . . . Volleys Fired . | . . . . . . . Largest . | . . . . . . . Hottest . | . . . . . . . Shots Fired . | . . . . . . . Gun . | . . . . . . . Cannon . | . . . . . . . Launcher . | . . . . . . . Special . | . . . . . . . Kinetic . | . . . . . . . Thermal . | . . . . . . . Explosive . | . . . . . . . Electromagnetic . | . . . . . . . Robot Hit Streak . | . . . . . . . Robot Miss Streak . | . . . . . . . Penetration Max . | . . . . . . . Secondary Targets . | . . . . . . . Shots Hit Robots . | . . . . . . . Core Hits . | . . . . . . . Critical Kills . | . . . . . . . Critical Parts Destroyed . | . . . . . . . Critical Strikes . | . . . . . . . Melee Attacks . | . . . . . . . Impact . | . . . . . . . Slashing . | . . . . . . . Piercing . | . . . . . . . Sneak Attacks . | . . . . . . . Combat Hostiles . | . . . . . . . Follow-up Attacks . | . . . . . . . Damage Inflicted 37 | . 3 5 29 . . . Guns . | . . . . . . . Cannons . | . . . . . . . Explosions . | . . . . . . . Melee . | . . . . . . . Ramming 37 | . 3 5 29 . . . Kinetic . | . . . . . . . Thermal . | . . . . . . . Explosive . | . . . . . . . Electromagnetic . | . . . . . . . Impact . | . . . . . . . Slashing . | . . . . . . . Piercing . | . . . . . . . Highest Corruption 2 | . . . . 2 2 2 Average Corruption 1 | . . . . 1 2 2 Corruption Purged . | . . . . . . . Corruption Blocked . | . . . . . . . Effects 2 | . . . . 1 . 1 Matter Fused 1 | . . . . 1 . . Energy Discharges 1 | . . . . . . 1 Overload Shots . | . . . . . . . Overflow Damage . | . . . . . . . Projectiles . | . . . . . . . Explosions . | . . . . . . . Melee . | . . . . . . . Knockbacks 2 | . . . 2 . . . Impact 2 | . . . 2 . . . Kinetic . | . . . . . . . Secondary . | . . . . . . . Self-Inflicted Damage 16 | . 1 2 13 . . . Shots . | . . . . . . . Rammed 10 | . 2 1 7 . . . Targets Rammed 10 | . 2 1 7 . . . Kicked . | . . . . . . . Crushed . | . . . . . . . Highest Temperature . | . . . . . . . Average Temperature . | . . . . . . . Received Heat Transfer 312 | . 51 63 45 81 . 72 Siege Activations . | . . . . . . . Robots Corrupted . | . . . . . . . Combat Hostiles . | . . . . . . . Parts Fried . | . . . . . . . Impact Corruptions . | . . . . . . . Robots Melted . | . . . . . . . Combat Hostiles . | . . . . . . . Parts Melted . | . . . . . . . Heat Transferred . | . . . . . . . Parts Sabotaged . | . . . . . . . Parts Stolen . | . . . . . . . Parts Stripped . | . . . . . . . Power Chain Reactions . | . . . . . . . Missiles Intercepted . | . . . . . . . Alert | -11 -10 -9 -8 -7 -7 -7 ------- Run | Jun Mat Mat Mat Fac Low Low Peak Influence 323 | . 90 67 71 323 . . Initial 37 | . . 37 26 32 . . Average 92 | . 27 54 47 135 . . Maximum Alert Level 1 | . . . . 1 . . Low Security (%) 89 | 100 100 100 100 80 . . Level 1 10 | . . . . 19 . . Level 2 . | . . . . . . . Level 3 . | . . . . . . . Level 4 . | . . . . . . . Level 5 . | . . . . . . . High Security . | . . . . . . . Max Security . | . . . . . . . Squads Dispatched 3 | . 1 . 1 1 . . Investigation . | . . . . . . . Extermination . | . . . . . . . Reinforcement 3 | . 1 . 1 1 . . Assault . | . . . . . . . Garrison . | . . . . . . . Intercept . | . . . . . . . Searches Triggered . | . . . . . . . Construction Impeded . | . . . . . . . Haulers Reinforced . | . . . . . . . Active Scanning Responses . | . . . . . . . Cargo Convoy Interrupts . | . . . . . . . Stealth | -11 -10 -9 -8 -7 -7 -7 --------- Run | Jun Mat Mat Mat Fac Low Low Distress Signals 2 | . . . 1 1 . . Communications Jammed . | . . . . . . . Distress Signals . | . . . . . . . Times Spotted 52 | . 10 12 7 20 2 1 Peak Tracking Total 12 | . 8 12 7 11 2 1 Tactical Retreats 4 | . 1 1 . 2 . . Traps | -11 -10 -9 -8 -7 -7 -7 ------- Run | Jun Mat Mat Mat Fac Low Low Traps Triggered . | . . . . . . . Indirectly . | . . . . . . . Trap Hack Attempts . | . . . . . . . Triggered . | . . . . . . . Disarmed . | . . . . . . . Reprogrammed . | . . . . . . . Reused . | . . . . . . . Traps Extracted . | . . . . . . . Installed . | . . . . . . . Triggered 2 | . . . . . 2 . Machines | -11 -10 -9 -8 -7 -7 -7 ---------- Run | Jun Mat Mat Mat Fac Low Low Machines Disabled . | . . . . . . . Max in Single Turn . | . . . . . . . Machines Repaired . | . . . . . . . Machines Sabotaged . | . . . . . . . Overloaded Fab Kills . | . . . . . . . Hacking | -11 -10 -9 -8 -7 -7 -7 --------- Run | Jun Mat Mat Mat Fac Low Low Machines Accessed 5 | . . . . 3 1 1 Terminals 2 | . . . . 2 . . Fabricators 1 | . . . . 1 . . Repair Stations . | . . . . . . . Recycling Units . | . . . . . . . Scanalyzers . | . . . . . . . Garrison Access . | . . . . . . . Total Hacks 8 | . . . . 6 1 1 Successful 5 | . . . . 3 1 1 Failed 3 | . . . . 3 . . Catastrophic 1 | . . . . 1 . . Database Lockouts . | . . . . . . . Manual 4 | . . . . 4 . . Terminals 4 | . . . . 4 . . Fabricators 2 | . . . . 2 . . Repair Stations . | . . . . . . . Recycling Units . | . . . . . . . Scanalyzers . | . . . . . . . Garrison Access . | . . . . . . . Terminal Hacks 3 | . . . . 1 1 1 Open Door 2 | . . . . . 1 1 Branch Access Points 1 | . . . . 1 . . Fabricator Hacks 1 | . . . . 1 . . Network Status 1 | . . . . 1 . . Repair Station Hacks . | . . . . . . . Recycling Unit Hacks . | . . . . . . . Scanalyzer . | . . . . . . . Garrison Access Hacks . | . . . . . . . Unauthorized Hacks 1 | . . . . 1 . . Terminals 1 | . . . . 1 . . Botnet 1 | . . . . 1 . . Fabricators . | . . . . . . . Repair Stations . | . . . . . . . Recycling Units . | . . . . . . . Scanalyzers . | . . . . . . . Garrison Access . | . . . . . . . Data Cores Recovered . | . . . . . . . Used . | . . . . . . . Hacking Detections 2 | . . . . 2 . . Full Trace Events . | . . . . . . . Feedback Events . | . . . . . . . Feedback Blocked . | . . . . . . . Robot Schematics Acquired . | . . . . . . . Robots Built . | . . . . . . . Authchips . | . . . . . . . Time . | . . . . . . . Total Robot Build Rating . | . . . . . . . Part Schematics Acquired . | . . . . . . . Parts Built . | . . . . . . . Authchips . | . . . . . . . Time . | . . . . . . . Total Part Build Rating . | . . . . . . . Parts Repaired . | . . . . . . . Time . | . . . . . . . Parts Recycled . | . . . . . . . Recycled Matter . | . . . . . . . Retrieved Matter . | . . . . . . . Retrieved Components . | . . . . . . . Parts Scanalyzed . | . . . . . . . Part Schematics Acquired . | . . . . . . . Parts Damaged . | . . . . . . . Bothacking | -11 -10 -9 -8 -7 -7 -7 ------------ Run | Jun Mat Mat Mat Fac Low Low Used RIF Installer . | . . . . . . . Robots Hacked . | . . . . . . . Non-combat . | . . . . . . . Combat . | . . . . . . . Robot Hacks Applied . | . . . . . . . Relay Couplers Released . | . . . . . . . Fabnet Peak Effective % . | . . . . . . . Robots Rewired . | . . . . . . . Allies Hacked . | . . . . . . . Hacks Repelled . | . . . . . . . Allies | -11 -10 -9 -8 -7 -7 -7 -------- Run | Jun Mat Mat Mat Fac Low Low Total Allies . | . . . . . . . Largest Group . | . . . . . . . Highest-Rated Group . | . . . . . . . Highest-Rated Ally . | . . . . . . . Total Orders . | . . . . . . . Ally Attacks . | . . . . . . . Total Damage . | . . . . . . . Kills . | . . . . . . . Allies Corrupted . | . . . . . . . Allies Melted . | . . . . . . . Intel | -11 -10 -9 -8 -7 -7 -7 ------- Run | Jun Mat Mat Mat Fac Low Low Robot Analysis Total . | . . . . . . . Derelict Logs Recovered 1 | . . . . . 1 . Drone Launches . | . . . . . . . Drone Recoveries . | . . . . . . . Exploration | -11 -10 -9 -8 -7 -7 -7 ------------- Run | Jun Mat Mat Mat Fac Low Low Turns Passed 645 | 25 47 72 54 241 132 74 Spaces Moved 1363 | 33 89 142 81 587 288 143 Core 795 | 28 89 142 81 163 149 143 Treads 5 | 5 . . . . . . Legs . | . . . . . . . Wheels . | . . . . . . . Hover . | . . . . . . . Flight 563 | . . . . 424 139 . Fastest Speed 34 | 50 50 50 50 34 34 50 Average Speed 44 | 66 50 50 50 40 43 50 Slowest Speed 160 | 160 50 50 50 50 100 50 Overloaded Moves . | . . . . . . . Propulsion Burnouts . | . . . . . . . Robots Hopped 23 | . . . . 21 2 . Cave-ins Triggered . | . . . . . . . Exploration Rate (%) 22 | 2 22 23 12 23 50 23 Regions Visited 6 Branch Regions 2 Pre-discovered Areas . | . . . . . . . Known Exits Taken 1 | . . . . 1 . . Unknown Exits Taken 5 | 1 1 1 1 . 1 . Scrap Searched 5 | . . . . . 3 2 Spaces Dug . | . . . . . . . Terrain Destroyed . | . . . . . . . Melee . | . . . . . . . Projectile . | . . . . . . . AOE . | . . . . . . . Terrain Rammed . | . . . . . . . Walls Destroyed . | . . . . . . . Machines Disabled . | . . . . . . . Actions | -11 -10 -9 -8 -7 -7 -7 --------- Run | Jun Mat Mat Mat Fac Low Low Total 1366 | 34 90 142 93 570 292 145 Wait . | . . . . . . . Move 1316 | 32 88 141 81 548 283 143 Hop 19 | . . . . 17 2 . Pick Up 7 | . . . 5 1 1 . Fast Attach 8 | 2 . . 1 2 2 1 Attach 3 | . . . . 2 1 . Detach 1 | . . . . . 1 . Swap . | . . . . . . . Drop 3 | . . . . . 2 1 Fire . | . . . . . . . Melee . | . . . . . . . Ram 9 | . 2 1 6 . . . Kick . | . . . . . . . Crush . | . . . . . . . Escape Stasis . | . . . . . . . Rewire . | . . . . . . . Trap . | . . . . . . . Miscellaneous . | . . . . . . . Route ------- -11/Junkyard -10/Materials -9/Materials -8/Materials -7/Factory (discovered 2 exits: *Low x2) -7/Lower Caves -7/Lower Caves (discovered 1 exit: [*Fac]) History --------- Turn | Location | Event 15 | -11/Junkyard | Discovered new exit (range 16) 26 | -11/Junkyard | Entered Materials 69 | -10/Materials | Discovered new exit (range 9) 73 | -10/Materials | Entered another Materials area 73 | -9/Materials | Evolved 2 slots: Utility x2 143 | -9/Materials | Discovered new exit (range 5) 145 | -9/Materials | Entered another Materials area 145 | -8/Materials | Evolved 2 slots: Power x1, Utility x1 198 | -8/Materials | Discovered new exit (range 3) 199 | -8/Materials | Entered Factory 199 | -7/Factory | Evolved 2 slots: Utility x2 311 | -7/Factory | Build established: Mutant 346 | -7/Factory | Identified exit to Lower Caves 440 | -7/Factory | Entered Lower Caves 496 | -7/Lower Caves | Core integrity fell below 50% 534 | -7/Lower Caves | Learned Factory stockpile data 570 | -7/Lower Caves | Discovered new exit (range 5) 572 | -7/Lower Caves | Entered another Lower Caves area 579 | -7/Lower Caves | Discovered new exit (range 14) 604 | -7/Lower Caves | Attracted the attention of an 0b10 checkpoint 646 | -7/Lower Caves | Self-destructed Last Messages --------------- 00587_ Searching scrap... 00587_ Found Transmission Jammer. 00587_ Found Imp. Heat Sink. 00587_ Found Shock Absorption System. 00587_ Found Imp. Shield Generator. 00587_ Found 30 Matter. 00588_ Acquired 10 matter. 00601_ System corrupted: Energy discharge (-22). 00603_ Searching scrap... 00603_ Found Lightning Gun. 00603_ Found Plasma Cutter. 00603_ Found 14 Matter. 00604_ Y-54 Guardian: "INTERCEPTING UNREGISTERED DERELICT." 00635_ Connecting with WAR.Sys... 00635_ Current location identified: Lower Caves >> Sealed Heavy Doors opened. 00636_ Acquired Imp. Reaction Control System. 00637_ Dropped Imp. Propulsion Shielding. 00644_ Med. Treads destroyed. Map ----- +----------------------------------------------------+ | | | | | | | ?????????????????????????????????????????????????? | | ?????????????????????????????????????????????????? | | ?????????????????????????????????????????????????? | | ?????????????????????????????????????????????????? | | ?????????????????????????????????????????????????? | | ?????????????????????????????????????????????????? | | ?????????????????????????????????????????????????? | | ?????????????????????????????????????????????????? | | ?????????????????????????????????????????????????? | | ?????????????????????????????????????????????????? | | ?????????????????????????????????????????????????? | | ?????????????????????????????????????????????????? | | ?????????????????????????????????????????????????? | | ?????????????????????????????????????????????????? | | ?????????????????????????????????????????????????? | | ??????????????????????????????????????#######????? | | ??????????????##????????????????####### ####?? | | ??????????????# ??#####??????## X## ### | | ??????????????# ## ###???#!!# ### # | | ?????????????## ##??#!!# #?##### | | ????????????## ##?#### #?????### | | ??????????? ##??# #####????## | | ??????????????????# @ #### # #?????#### | | ?????????????????## ## #????????# | | ?????????????????# #????????## | | ????????????????# #????###### | | ????????????????## ### #????# ## | | ?????????????????# ##?### #????# | | ????????????????# ## #????# ###### | | ???????????????# ?######????# | | ?????????????? ????????????# | | ?????????????# ?????????????#### ###### | | ?????????????? ?????????????????###????# | | ??????????????# ????????????????????????# ##### | | ??????????????????????????????????????? ##???? | | ?????????????????????????????????????? ##????? | | ????????????????????????????????????# ##?????? | | ???????????????????????????????????? #???????? | | ??????????????????????????????????? ????????? | | ??????????????????????????????????? ????????? | | ??????????????????????????????????? #####????????? | | ???????????????????????????????????#?????????????? | | ?????????????????????????????????????????????????? | | ?????????????????????????????????????????????????? | | ?????????????????????????????????????????????????? | | ?????????????????????????????????????????????????? | | ?????????????????????????????????????????????????? | +----------------------------------------------------+ Best States ------------- Heat Dissipation 34 Energy Generation 5 Energy Capacity 100 Matter Stores 300 Matter Capacity 300 Sight Range 16 Robot Scan Range 15 Terrain Scan Density 10 Propulsion Shielding 66 Evasion (%) 63 Recoil Reduction 1 Item Schematics ----------------- None Robot Schematics ------------------ None Fabricated ------------ Nothing Alien Tech Used ----------------- None Achievements -------------- None Challenges ------------ None Game ------ Seed MasterRemoteDissipator Manual? 0 Play Time 00:08:37 Cumulative 190.6 hours Start 2023.05.10 @ 22:42:28 End 2023.05.10 @ 22:50:13 Sessions 1 Manual Loads 0 Difficulty Rogue Special Mode None Game No. 546 Rogue 546 Adventurer 0 Explorer 0 Win Type - Total 9 Types 7/0/1/1/0/0/0/0/0 Lore% 77 Gallery% 76 Achievement% 68 Wizard Run 0 Options --------- ASCII 0 Keyboard 0 Movement Numpad Keybinds 0 Fullscreen 1 Font 16/SmallcapsGlow Map View 75x55 Tactical HUD 1 Map Filters NONE Filters NONE Steam 1 RUN: f8b40689-5100-48b2-8474-cb5ed11cd92f